[Event "Titled Tuesday Blitz June 29 2021"]
[White "federicosellitti"]
[Black "GregShahade"]
[WhiteElo "2596"]
[BlackElo "2718"]
[Result "0-1"]
[Round "07"]
[TimeControl "180+1"]
[Date "2021.06.29"]
[WhiteClock "0:00:02"]
[BlackClock "0:02:05"]

1. e4 {[%clk 0:03:00]}  e5 {[%clk 0:03:00]} 2. Nc3 {[%clk 0:03:00]}  Nf6 {[%clk 0:02:59]} 3. f4 {[%clk 0:03:00]}  d5 {[%clk 0:02:58]} 4. fxe5 {[%clk 0:02:59]}  Nxe4 {[%clk 0:02:58]} 5. Qf3 {[%clk 0:02:59]}  f5 {[%clk 0:02:58]} 6. d3 {[%clk 0:02:58]}  Nxc3 {[%clk 0:02:58]} 7. bxc3 {[%clk 0:02:59]}  d4 {[%clk 0:02:57]} 8. Qf2 {[%clk 0:02:57]}  dxc3 {[%clk 0:02:55]} 9. Nf3 {[%clk 0:02:52]}  Nc6 {[%clk 0:02:53]} 10. Be2 {[%clk 0:02:25]}  Be7 {[%clk 0:02:50]} 11. O-O {[%clk 0:02:15]}  Be6 {[%clk 0:02:50]} 12. Qg3 {[%clk 0:01:58]}  O-O {[%clk 0:02:44]} 13. Bh6 {[%clk 0:01:52]}  Rf7 {[%clk 0:02:40]} 14. Ng5 {[%clk 0:01:23]}  Bxg5 {[%clk 0:02:37]} 15. Bxg5 {[%clk 0:01:24]}  Qd4+ {[%clk 0:02:35]} 16. Kh1 {[%clk 0:01:10]}  Qxe5 {[%clk 0:02:33]} 17. Qf2 {[%clk 0:01:08]}  f4 {[%clk 0:02:24]} 18. Bxf4 {[%clk 0:00:41]}  Raf8 {[%clk 0:02:10]} 19. g3 {[%clk 0:00:04]}  g5 {[%clk 0:02:09]} 20. Bxe5 {[%clk 0:00:03]}  Rxf2 {[%clk 0:02:09]} 21. Bxc3 {[%clk 0:00:02]}  Bd5+ {[%clk 0:02:06]} 22. Kg1 {[%clk 0:00:02]}  Rg2+ {[%clk 0:02:06]} 23. Kh1 {[%clk 0:00:02]}  Rxe2+ {[%clk 0:02:05]} 0-1


[Site "https://www.chess.com"]

[Event "Titled Tuesday Blitz June 29 2021"]
[White "jcibarra"]
[Black "InitiatingASC"]
[WhiteElo "2802"]
[BlackElo "2340"]
[Result "1-0"]
[Round "07"]
[TimeControl "180+1"]
[Date "2021.06.29"]
[WhiteClock "0:00:14"]
[BlackClock "0:00:03"]

1. d4 {[%clk 0:03:00]}  Nf6 {[%clk 0:02:59]} 2. Bf4 {[%clk 0:02:57]}  e6 {[%clk 0:02:59]} 3. e3 {[%clk 0:02:56]}  c5 {[%clk 0:02:58]} 4. Nd2 {[%clk 0:02:55]}  cxd4 {[%clk 0:02:57]} 5. exd4 {[%clk 0:02:55]}  Be7 {[%clk 0:02:53]} 6. Ngf3 {[%clk 0:02:54]}  b6 {[%clk 0:02:52]} 7. Bd3 {[%clk 0:02:51]}  Bb7 {[%clk 0:02:52]} 8. O-O {[%clk 0:02:51]}  O-O {[%clk 0:02:52]} 9. a4 {[%clk 0:02:51]}  a6 {[%clk 0:02:51]} 10. c3 {[%clk 0:02:50]}  d6 {[%clk 0:02:52]} 11. Re1 {[%clk 0:02:50]}  Nbd7 {[%clk 0:02:52]} 12. h3 {[%clk 0:02:49]}  Re8 {[%clk 0:02:50]} 13. Nc4 {[%clk 0:02:43]}  Qc7 {[%clk 0:02:39]} 14. Bg3 {[%clk 0:02:31]}  Qc6 {[%clk 0:02:36]} 15. Qe2 {[%clk 0:02:08]}  Nf8 {[%clk 0:02:21]} 16. Ne3 {[%clk 0:01:41]}  Ng6 {[%clk 0:02:15]} 17. Bh2 {[%clk 0:01:28]}  Nd5 {[%clk 0:01:51]} 18. Nxd5 {[%clk 0:01:24]}  Qxd5 {[%clk 0:01:49]} 19. Qc2 {[%clk 0:01:20]}  Qh5 {[%clk 0:01:43]} 20. Be4 {[%clk 0:01:17]}  Bd5 {[%clk 0:01:33]} 21. c4 {[%clk 0:01:15]}  Rac8 {[%clk 0:01:25]} 22. b3 {[%clk 0:01:06]}  Bxe4 {[%clk 0:01:09]} 23. Qxe4 {[%clk 0:01:06]}  d5 {[%clk 0:00:50]} 24. Qd3 {[%clk 0:01:04]}  dxc4 {[%clk 0:00:46]} 25. bxc4 {[%clk 0:01:04]}  Bb4 {[%clk 0:00:46]} 26. Re4 {[%clk 0:00:59]}  Red8 {[%clk 0:00:38]} 27. Rd1 {[%clk 0:00:56]}  Qa5 {[%clk 0:00:36]} 28. Qb3 {[%clk 0:00:53]}  Bf8 {[%clk 0:00:26]} 29. Rb1 {[%clk 0:00:50]}  Rc6 {[%clk 0:00:22]} 30. Bg3 {[%clk 0:00:41]}  Rdc8 {[%clk 0:00:20]} 31. d5 {[%clk 0:00:41]}  exd5 {[%clk 0:00:19]} 32. cxd5 {[%clk 0:00:42]}  Rc1+ {[%clk 0:00:19]} 33. Rxc1 {[%clk 0:00:42]}  Rxc1+ {[%clk 0:00:19]} 34. Kh2 {[%clk 0:00:43]}  Qc5 {[%clk 0:00:18]} 35. Qd3 {[%clk 0:00:37]}  Rc3 {[%clk 0:00:18]} 36. Qxa6 {[%clk 0:00:35]}  Qxd5 {[%clk 0:00:14]} 37. Re8 {[%clk 0:00:33]}  Qc5 {[%clk 0:00:11]} 38. Qa8 {[%clk 0:00:30]}  Ra3 {[%clk 0:00:11]} 39. Rd8 {[%clk 0:00:27]}  Qa5 {[%clk 0:00:08]} 40. Qb8 {[%clk 0:00:22]}  Rxf3 {[%clk 0:00:03]} 41. Bd6 {[%clk 0:00:14]} 1-0


[Site "https://www.chess.com"]

[Event "Titled Tuesday Blitz June 29 2021"]
[White "karinachess1"]
[Black "GianmarcoVaR"]
[WhiteElo "2545"]
[BlackElo "2681"]
[Result "0-1"]
[Round "07"]
[TimeControl "180+1"]
[Date "2021.06.29"]
[WhiteClock "0:00:05"]
[BlackClock "0:00:05"]

1. c4 {[%clk 0:03:00]}  Nf6 {[%clk 0:02:56]} 2. Nf3 {[%clk 0:03:00]}  e6 {[%clk 0:02:51]} 3. g3 {[%clk 0:03:00]}  d5 {[%clk 0:02:51]} 4. Bg2 {[%clk 0:03:00]}  Be7 {[%clk 0:02:51]} 5. O-O {[%clk 0:02:59]}  O-O {[%clk 0:02:52]} 6. b3 {[%clk 0:03:00]}  c5 {[%clk 0:02:42]} 7. e3 {[%clk 0:02:56]}  Nc6 {[%clk 0:02:41]} 8. Bb2 {[%clk 0:02:52]}  d4 {[%clk 0:02:40]} 9. exd4 {[%clk 0:02:50]}  cxd4 {[%clk 0:02:40]} 10. d3 {[%clk 0:02:47]}  e5 {[%clk 0:02:10]} 11. Re1 {[%clk 0:02:47]}  Nd7 {[%clk 0:02:09]} 12. Nbd2 {[%clk 0:02:44]}  Re8 {[%clk 0:02:04]} 13. a3 {[%clk 0:02:39]}  a5 {[%clk 0:02:04]} 14. Rc1 {[%clk 0:02:38]}  Bf8 {[%clk 0:02:02]} 15. h3 {[%clk 0:02:08]}  h6 {[%clk 0:01:59]} 16. Nh4 {[%clk 0:02:06]}  Nc5 {[%clk 0:01:49]} 17. Ne4 {[%clk 0:01:52]}  Na6 {[%clk 0:01:17]} 18. c5 {[%clk 0:01:38]}  Be6 {[%clk 0:01:15]} 19. Kh2 {[%clk 0:01:15]}  Rc8 {[%clk 0:01:13]} 20. Qd2 {[%clk 0:01:00]}  Bxb3 {[%clk 0:01:04]} 21. Nf5 {[%clk 0:00:59]}  Re6 {[%clk 0:00:53]} 22. Nfd6 {[%clk 0:00:54]}  Rc7 {[%clk 0:00:50]} 23. f4 {[%clk 0:00:45]}  exf4 {[%clk 0:00:40]} 24. Qxf4 {[%clk 0:00:46]}  Bd5 {[%clk 0:00:31]} 25. Rf1 {[%clk 0:00:40]}  Bxe4 {[%clk 0:00:32]} 26. Nxe4 {[%clk 0:00:39]}  Ne5 {[%clk 0:00:30]} 27. Nf2 {[%clk 0:00:19]}  Nxc5 {[%clk 0:00:22]} 28. Qxd4 {[%clk 0:00:19]}  Rd7 {[%clk 0:00:15]} 29. Qc3 {[%clk 0:00:13]}  Ncxd3 {[%clk 0:00:08]} 30. Ba1 {[%clk 0:00:12]}  Nxc1 {[%clk 0:00:07]} 31. Rxc1 {[%clk 0:00:11]}  Nd3 {[%clk 0:00:07]} 32. Rf1 {[%clk 0:00:10]}  Nxf2 {[%clk 0:00:07]} 33. Rxf2 {[%clk 0:00:11]}  Rd3 {[%clk 0:00:06]} 34. Qb2 {[%clk 0:00:11]}  Rb6 {[%clk 0:00:05]} 35. Qe5 {[%clk 0:00:10]}  Re6 {[%clk 0:00:05]} 36. Qb2 {[%clk 0:00:10]}  Qd6 {[%clk 0:00:04]} 37. Bf3 {[%clk 0:00:07]}  Rf6 {[%clk 0:00:04]} 38. Kg2 {[%clk 0:00:07]}  Rdxf3 {[%clk 0:00:03]} 39. Rxf3 {[%clk 0:00:07]}  Qd5 {[%clk 0:00:04]} 40. Qe2 {[%clk 0:00:07]}  Rxf3 {[%clk 0:00:03]} 41. Qxf3 {[%clk 0:00:08]}  Qxf3+ {[%clk 0:00:04]} 42. Kxf3 {[%clk 0:00:08]}  Bxa3 {[%clk 0:00:04]} 43. Be5 {[%clk 0:00:08]}  b5 {[%clk 0:00:05]} 44. Bc7 {[%clk 0:00:08]}  a4 {[%clk 0:00:05]} 45. Ke4 {[%clk 0:00:08]}  Bb2 {[%clk 0:00:06]} 46. Kd3 {[%clk 0:00:08]}  b4 {[%clk 0:00:05]} 47. Kc2 {[%clk 0:00:08]}  Bf6 {[%clk 0:00:05]} 48. Bd6 {[%clk 0:00:09]}  b3+ {[%clk 0:00:05]} 49. Kb1 {[%clk 0:00:09]}  Kh7 {[%clk 0:00:04]} 50. Bc5 {[%clk 0:00:06]}  Kg6 {[%clk 0:00:04]} 51. Bd6 {[%clk 0:00:06]}  Kf5 {[%clk 0:00:04]} 52. Bc5 {[%clk 0:00:05]}  Ke4 {[%clk 0:00:05]} 53. Bd6 {[%clk 0:00:05]}  Kf3 {[%clk 0:00:05]} 54. Bc7 {[%clk 0:00:05]}  Kg2 {[%clk 0:00:05]} 55. Bd6 {[%clk 0:00:05]}  Kxh3 {[%clk 0:00:05]} 0-1


[Site "https://www.chess.com"]

[Event "Titled Tuesday Blitz June 29 2021"]
[White "kingofthenil"]
[Black "Mikhail_Bryakin"]
[WhiteElo "2614"]
[BlackElo "2765"]
[Result "1-0"]
[Round "07"]
[TimeControl "180+1"]
[Date "2021.06.29"]
[WhiteClock "0:00:49"]
[BlackClock "0:02:17"]

1. e4 {[%clk 0:03:00]}  d6 {[%clk 0:02:53]} 2. d4 {[%clk 0:03:00]}  g6 {[%clk 0:02:53]} 3. Nc3 {[%clk 0:03:00]}  Bg7 {[%clk 0:02:53]} 4. h4 {[%clk 0:02:58]}  h6 {[%clk 0:02:52]} 5. h5 {[%clk 0:02:50]}  g5 {[%clk 0:02:50]} 6. f4 {[%clk 0:02:51]}  gxf4 {[%clk 0:02:49]} 7. Bxf4 {[%clk 0:02:52]}  Nc6 {[%clk 0:02:49]} 8. Nf3 {[%clk 0:02:51]}  Bg4 {[%clk 0:02:49]} 9. d5 {[%clk 0:02:51]}  Ne5 {[%clk 0:02:46]} 10. Be2 {[%clk 0:02:52]}  Bxf3 {[%clk 0:02:35]} 11. gxf3 {[%clk 0:02:47]}  e6 {[%clk 0:02:36]} 12. Qd2 {[%clk 0:02:47]}  Ne7 {[%clk 0:02:36]} 13. O-O-O {[%clk 0:02:47]}  Qd7 {[%clk 0:02:36]} 14. Rdg1 {[%clk 0:02:36]}  Rh7 {[%clk 0:02:32]} 15. dxe6 {[%clk 0:01:21]}  fxe6 {[%clk 0:02:30]} 16. Qe3 {[%clk 0:01:11]}  a6 {[%clk 0:02:26]} 17. Rxg7 {[%clk 0:01:01]}  Rxg7 {[%clk 0:02:25]} 18. Bxe5 {[%clk 0:01:02]}  dxe5 {[%clk 0:02:25]} 19. Rd1 {[%clk 0:01:02]}  Qc6 {[%clk 0:02:21]} 20. Qxh6 {[%clk 0:01:02]}  Kf7 {[%clk 0:02:21]} 21. f4 {[%clk 0:00:50]}  Qd7 {[%clk 0:02:17]} 22. Rxd7 {[%clk 0:00:49]} 1-0


[Site "https://www.chess.com"]

[Event "Titled Tuesday Blitz June 29 2021"]
[White "kudesnik84"]
[Black "ElviraBerend"]
[WhiteElo "2359"]
[BlackElo "2505"]
[Result "1-0"]
[Round "07"]
[TimeControl "180+1"]
[Date "2021.06.29"]
[WhiteClock "0:00:07"]
[BlackClock "0:01:12"]

1. e4 {[%clk 0:02:59]}  c5 {[%clk 0:02:58]} 2. Nf3 {[%clk 0:02:58]}  e6 {[%clk 0:02:59]} 3. d4 {[%clk 0:02:57]}  cxd4 {[%clk 0:02:59]} 4. Nxd4 {[%clk 0:02:58]}  Nc6 {[%clk 0:03:00]} 5. Nb5 {[%clk 0:02:53]}  d6 {[%clk 0:02:58]} 6. Bf4 {[%clk 0:02:49]}  e5 {[%clk 0:02:58]} 7. Be3 {[%clk 0:02:49]}  Nf6 {[%clk 0:02:57]} 8. N1c3 {[%clk 0:02:36]}  a6 {[%clk 0:02:54]} 9. Na3 {[%clk 0:02:18]}  b5 {[%clk 0:02:51]} 10. Nd5 {[%clk 0:02:18]}  Be7 {[%clk 0:02:52]} 11. Bb6 {[%clk 0:02:14]}  Qd7 {[%clk 0:02:42]} 12. Nc7+ {[%clk 0:02:14]}  Kf8 {[%clk 0:02:43]} 13. Nxa8 {[%clk 0:02:14]}  Qb7 {[%clk 0:02:44]} 14. c4 {[%clk 0:02:03]}  b4 {[%clk 0:02:42]} 15. Nc2 {[%clk 0:01:56]}  Qxa8 {[%clk 0:02:41]} 16. Bd3 {[%clk 0:01:48]}  Qb7 {[%clk 0:02:36]} 17. Be3 {[%clk 0:01:48]}  h5 {[%clk 0:02:36]} 18. f3 {[%clk 0:01:43]}  h4 {[%clk 0:02:36]} 19. Qd2 {[%clk 0:01:41]}  a5 {[%clk 0:02:35]} 20. b3 {[%clk 0:01:36]}  Be6 {[%clk 0:02:32]} 21. Be2 {[%clk 0:01:13]}  Nh5 {[%clk 0:02:25]} 22. O-O {[%clk 0:01:02]}  Qc8 {[%clk 0:02:10]} 23. Rfd1 {[%clk 0:01:01]}  Nf4 {[%clk 0:01:53]} 24. Bxf4 {[%clk 0:00:57]}  exf4 {[%clk 0:01:54]} 25. Qxf4 {[%clk 0:00:57]}  Ne5 {[%clk 0:01:54]} 26. Qe3 {[%clk 0:00:49]}  h3 {[%clk 0:01:53]} 27. g3 {[%clk 0:00:49]}  Qc7 {[%clk 0:01:51]} 28. Nd4 {[%clk 0:00:47]}  Kg8 {[%clk 0:01:46]} 29. Nf5 {[%clk 0:00:45]}  Bf8 {[%clk 0:01:44]} 30. f4 {[%clk 0:00:44]}  Nc6 {[%clk 0:01:42]} 31. Rd3 {[%clk 0:00:38]}  g6 {[%clk 0:01:41]} 32. Nd4 {[%clk 0:00:37]}  Nxd4 {[%clk 0:01:40]} 33. Rxd4 {[%clk 0:00:37]}  Bg7 {[%clk 0:01:41]} 34. Rad1 {[%clk 0:00:37]}  Bxd4 {[%clk 0:01:38]} 35. Qxd4 {[%clk 0:00:37]}  Qb7 {[%clk 0:01:36]} 36. Bf3 {[%clk 0:00:37]}  a4 {[%clk 0:01:28]} 37. Qxd6 {[%clk 0:00:30]}  axb3 {[%clk 0:01:27]} 38. axb3 {[%clk 0:00:24]}  Qa7+ {[%clk 0:01:27]} 39. Qd4 {[%clk 0:00:24]}  Qa2 {[%clk 0:01:27]} 40. Ra1 {[%clk 0:00:16]}  Qxa1+ {[%clk 0:01:17]} 41. Qxa1 {[%clk 0:00:15]}  Kh7 {[%clk 0:01:18]} 42. f5 {[%clk 0:00:14]}  gxf5 {[%clk 0:01:17]} 43. exf5 {[%clk 0:00:14]}  Bxf5 {[%clk 0:01:17]} 44. g4 {[%clk 0:00:13]}  Bg6 {[%clk 0:01:18]} 45. Kf2 {[%clk 0:00:13]}  Re8 {[%clk 0:01:16]} 46. c5 {[%clk 0:00:12]}  Rd8 {[%clk 0:01:14]} 47. c6 {[%clk 0:00:12]}  Rd2+ {[%clk 0:01:14]} 48. Kg3 {[%clk 0:00:12]}  Rc2 {[%clk 0:01:15]} 49. Kxh3 {[%clk 0:00:11]}  Rc3 {[%clk 0:01:15]} 50. Kg2 {[%clk 0:00:08]}  Rc2+ {[%clk 0:01:16]} 51. Kg3 {[%clk 0:00:08]}  Rc3 {[%clk 0:01:16]} 52. Qd1 {[%clk 0:00:07]}  Be4 {[%clk 0:01:13]} 53. Kf4 {[%clk 0:00:07]}  Bxf3 {[%clk 0:01:13]} 54. Qxf3 {[%clk 0:00:07]}  Kg7 {[%clk 0:01:12]} 55. Qxc3+ {[%clk 0:00:06]}  bxc3 {[%clk 0:01:12]} 56. c7 {[%clk 0:00:07]} 1-0


[Site "https://www.chess.com"]

[Event "Titled Tuesday Blitz June 29 2021"]
[White "louis198"]
[Black "FairChess_on_YouTube"]
[WhiteElo "2616"]
[BlackElo "2980"]
[Result "0-1"]
[Round "07"]
[TimeControl "180+1"]
[Date "2021.06.29"]
[WhiteClock "0:00:41"]
[BlackClock "0:00:05"]

1. d4 {[%clk 0:03:00]}  Nf6 {[%clk 0:02:57]} 2. c4 {[%clk 0:02:55]}  c5 {[%clk 0:02:58]} 3. e3 {[%clk 0:02:55]}  g6 {[%clk 0:02:55]} 4. Nc3 {[%clk 0:02:55]}  Bg7 {[%clk 0:02:54]} 5. Nf3 {[%clk 0:02:55]}  O-O {[%clk 0:02:54]} 6. Be2 {[%clk 0:02:55]}  cxd4 {[%clk 0:02:53]} 7. exd4 {[%clk 0:02:55]}  d5 {[%clk 0:02:53]} 8. c5 {[%clk 0:02:56]}  Nc6 {[%clk 0:02:52]} 9. h3 {[%clk 0:02:56]}  b6 {[%clk 0:02:42]} 10. cxb6 {[%clk 0:02:55]}  axb6 {[%clk 0:02:39]} 11. O-O {[%clk 0:02:55]}  Ba6 {[%clk 0:02:39]} 12. Re1 {[%clk 0:02:50]}  e6 {[%clk 0:02:38]} 13. Bg5 {[%clk 0:02:44]}  h6 {[%clk 0:02:37]} 14. Bh4 {[%clk 0:02:42]}  Bxe2 {[%clk 0:02:31]} 15. Rxe2 {[%clk 0:02:41]}  Qb8 {[%clk 0:02:12]} 16. Bg3 {[%clk 0:02:39]}  Qb7 {[%clk 0:02:10]} 17. Nb5 {[%clk 0:02:38]}  Ne4 {[%clk 0:02:09]} 18. Bh2 {[%clk 0:02:34]}  Na7 {[%clk 0:01:56]} 19. Nxa7 {[%clk 0:02:28]}  Rxa7 {[%clk 0:01:55]} 20. Rc2 {[%clk 0:02:28]}  b5 {[%clk 0:01:42]} 21. a3 {[%clk 0:02:24]}  Qb6 {[%clk 0:01:36]} 22. Rac1 {[%clk 0:02:22]}  b4 {[%clk 0:01:36]} 23. Rc6 {[%clk 0:02:15]}  Qb5 {[%clk 0:01:36]} 24. Qb3 {[%clk 0:02:07]}  g5 {[%clk 0:00:58]} 25. Be5 {[%clk 0:02:01]}  Qa4 {[%clk 0:00:50]} 26. Qxb4 {[%clk 0:01:59]}  Qxb4 {[%clk 0:00:50]} 27. axb4 {[%clk 0:02:00]}  Rb7 {[%clk 0:00:48]} 28. Rc8 {[%clk 0:01:52]}  Rxb4 {[%clk 0:00:36]} 29. Rxf8+ {[%clk 0:01:47]}  Bxf8 {[%clk 0:00:37]} 30. Rc2 {[%clk 0:01:31]}  f6 {[%clk 0:00:37]} 31. Bc7 {[%clk 0:01:29]}  h5 {[%clk 0:00:37]} 32. g4 {[%clk 0:01:24]}  hxg4 {[%clk 0:00:36]} 33. hxg4 {[%clk 0:01:24]}  Kf7 {[%clk 0:00:36]} 34. Kf1 {[%clk 0:01:11]}  Be7 {[%clk 0:00:35]} 35. Ke2 {[%clk 0:01:11]}  Ke8 {[%clk 0:00:35]} 36. Ba5 {[%clk 0:01:09]}  Rb5 {[%clk 0:00:34]} 37. Bc3 {[%clk 0:01:09]}  Bd6 {[%clk 0:00:33]} 38. Kd3 {[%clk 0:01:08]}  Bf4 {[%clk 0:00:32]} 39. b4 {[%clk 0:01:03]}  Kd7 {[%clk 0:00:28]} 40. Ra2 {[%clk 0:01:02]}  Bd6 {[%clk 0:00:27]} 41. Ra7+ {[%clk 0:00:59]}  Ke8 {[%clk 0:00:24]} 42. Ra6 {[%clk 0:00:58]}  Kd7 {[%clk 0:00:19]} 43. Ra7+ {[%clk 0:00:56]}  Kc6 {[%clk 0:00:19]} 44. Ra4 {[%clk 0:00:54]}  Nxf2+ {[%clk 0:00:18]} 45. Kc2 {[%clk 0:00:52]}  Nxg4 {[%clk 0:00:19]} 46. Ra6+ {[%clk 0:00:52]}  Rb6 {[%clk 0:00:18]} 47. Ra4 {[%clk 0:00:48]}  Nf2 {[%clk 0:00:17]} 48. Nd2 {[%clk 0:00:47]}  g4 {[%clk 0:00:16]} 49. Nb3 {[%clk 0:00:47]}  g3 {[%clk 0:00:16]} 50. Na5+ {[%clk 0:00:43]}  Kb5 {[%clk 0:00:15]} 51. Ra1 {[%clk 0:00:43]}  Rb8 {[%clk 0:00:11]} 52. Rg1 {[%clk 0:00:42]}  Rg8 {[%clk 0:00:10]} 53. Nb7 {[%clk 0:00:42]}  Be7 {[%clk 0:00:08]} 54. Nc5 {[%clk 0:00:42]}  Bxc5 {[%clk 0:00:06]} 55. dxc5 {[%clk 0:00:41]}  g2 {[%clk 0:00:06]} 56. Bxf6 {[%clk 0:00:42]}  Nh3 {[%clk 0:00:06]} 57. Rxg2 {[%clk 0:00:41]}  Rxg2+ {[%clk 0:00:05]} 58. Kd3 {[%clk 0:00:42]}  Rg4 {[%clk 0:00:05]} 59. Bd4 {[%clk 0:00:40]}  Nf4+ {[%clk 0:00:05]} 60. Ke3 {[%clk 0:00:41]}  Ng6 {[%clk 0:00:06]} 61. c6 {[%clk 0:00:41]}  Kxc6 {[%clk 0:00:05]} 0-1


[Site "https://www.chess.com"]

[Event "Titled Tuesday Blitz June 29 2021"]
[White "moro182"]
[Black "exoticprincess"]
[WhiteElo "2709"]
[BlackElo "2870"]
[Result "1/2-1/2"]
[Round "07"]
[TimeControl "180+1"]
[Date "2021.06.29"]
[WhiteClock "0:01:31"]
[BlackClock "0:02:26"]

1. d4 {[%clk 0:03:00]}  Nf6 {[%clk 0:02:59]} 2. c4 {[%clk 0:03:00]}  c5 {[%clk 0:02:59]} 3. Nf3 {[%clk 0:03:00]}  e6 {[%clk 0:02:59]} 4. Nc3 {[%clk 0:02:59]}  cxd4 {[%clk 0:02:53]} 5. Nxd4 {[%clk 0:03:00]}  Be7 {[%clk 0:02:46]} 6. g3 {[%clk 0:02:54]}  O-O {[%clk 0:02:45]} 7. Bg2 {[%clk 0:02:54]}  d6 {[%clk 0:02:44]} 8. O-O {[%clk 0:02:53]}  a6 {[%clk 0:02:41]} 9. b3 {[%clk 0:02:52]}  Qc7 {[%clk 0:02:41]} 10. Bb2 {[%clk 0:02:51]}  Nc6 {[%clk 0:02:41]} 11. Rc1 {[%clk 0:02:51]}  Nxd4 {[%clk 0:02:41]} 12. Qxd4 {[%clk 0:02:52]}  Bd7 {[%clk 0:02:38]} 13. Rfd1 {[%clk 0:02:49]}  Rfd8 {[%clk 0:02:36]} 14. Ne4 {[%clk 0:02:24]}  Bc6 {[%clk 0:02:35]} 15. Nxf6+ {[%clk 0:02:14]}  Bxf6 {[%clk 0:02:36]} 16. Qd2 {[%clk 0:02:14]}  Bxb2 {[%clk 0:02:36]} 17. Qxb2 {[%clk 0:02:14]}  h6 {[%clk 0:02:37]} 18. Rd4 {[%clk 0:02:09]}  Rd7 {[%clk 0:02:35]} 19. Rcd1 {[%clk 0:02:08]}  Rad8 {[%clk 0:02:35]} 20. Qd2 {[%clk 0:02:00]}  Bxg2 {[%clk 0:02:31]} 21. Kxg2 {[%clk 0:02:00]}  b5 {[%clk 0:02:32]} 22. Qb4 {[%clk 0:01:49]}  Qc6+ {[%clk 0:02:23]} 23. Kg1 {[%clk 0:01:44]}  d5 {[%clk 0:02:23]} 24. cxd5 {[%clk 0:01:40]}  Rxd5 {[%clk 0:02:24]} 25. Rxd5 {[%clk 0:01:35]}  Rxd5 {[%clk 0:02:25]} 26. Rxd5 {[%clk 0:01:35]}  Qxd5 {[%clk 0:02:26]} 27. e3 {[%clk 0:01:31]} 1/2-1/2


[Site "https://www.chess.com"]

[Event "Titled Tuesday Blitz June 29 2021"]
[White "seorobert1971"]
[Black "ChessWarrior7197"]
[WhiteElo "2786"]
[BlackElo "2978"]
[Result "0-1"]
[Round "07"]
[TimeControl "180+1"]
[Date "2021.06.29"]
[WhiteClock "0:00:01"]
[BlackClock "0:00:40"]

1. Nf3 {[%clk 0:02:34]}  Nf6 {[%clk 0:02:58]} 2. d4 {[%clk 0:02:34]}  d5 {[%clk 0:02:58]} 3. c4 {[%clk 0:02:35]}  e6 {[%clk 0:02:56]} 4. Nc3 {[%clk 0:02:35]}  dxc4 {[%clk 0:02:55]} 5. e3 {[%clk 0:02:35]}  a6 {[%clk 0:02:54]} 6. Bxc4 {[%clk 0:02:33]}  b5 {[%clk 0:02:55]} 7. Bd3 {[%clk 0:02:33]}  Bb7 {[%clk 0:02:56]} 8. O-O {[%clk 0:02:33]}  c5 {[%clk 0:02:56]} 9. dxc5 {[%clk 0:02:32]}  Bxc5 {[%clk 0:02:57]} 10. b3 {[%clk 0:02:30]}  O-O {[%clk 0:02:55]} 11. Bb2 {[%clk 0:02:30]}  Nbd7 {[%clk 0:02:55]} 12. Qe2 {[%clk 0:02:29]}  Qe7 {[%clk 0:02:46]} 13. Rfd1 {[%clk 0:02:28]}  Rac8 {[%clk 0:02:46]} 14. Nd2 {[%clk 0:02:28]}  Ba3 {[%clk 0:02:43]} 15. Bxa3 {[%clk 0:02:26]}  Qxa3 {[%clk 0:02:43]} 16. Nce4 {[%clk 0:02:26]}  Rfd8 {[%clk 0:02:37]} 17. Nxf6+ {[%clk 0:02:19]}  Nxf6 {[%clk 0:02:38]} 18. Nf3 {[%clk 0:02:19]}  h6 {[%clk 0:02:33]} 19. h3 {[%clk 0:02:18]}  Nd5 {[%clk 0:02:34]} 20. Rd2 {[%clk 0:02:01]}  Nc3 {[%clk 0:02:32]} 21. Qe1 {[%clk 0:02:01]}  Bxf3 {[%clk 0:02:29]} 22. gxf3 {[%clk 0:02:01]}  Qc5 {[%clk 0:01:56]} 23. Bf1 {[%clk 0:01:59]}  Qg5+ {[%clk 0:01:54]} 24. Kh2 {[%clk 0:01:58]}  b4 {[%clk 0:01:48]} 25. Bxa6 {[%clk 0:01:52]}  Rxd2 {[%clk 0:01:44]} 26. Qxd2 {[%clk 0:01:49]}  Rd8 {[%clk 0:01:45]} 27. Qe1 {[%clk 0:01:49]}  Qe5+ {[%clk 0:01:43]} 28. f4 {[%clk 0:01:48]}  Qe4 {[%clk 0:01:36]} 29. a3 {[%clk 0:01:38]}  Qc2 {[%clk 0:01:34]} 30. Rc1 {[%clk 0:01:33]}  Qb2 {[%clk 0:01:25]} 31. axb4 {[%clk 0:01:29]}  Rd2 {[%clk 0:01:25]} 32. Kg2 {[%clk 0:01:09]}  Ne4 {[%clk 0:01:23]} 33. Bf1 {[%clk 0:01:08]}  Rxf2+ {[%clk 0:01:23]} 34. Kg1 {[%clk 0:01:08]}  Qf6 {[%clk 0:01:13]} 35. Rc8+ {[%clk 0:00:58]}  Kh7 {[%clk 0:01:13]} 36. Qxf2 {[%clk 0:00:57]}  Nxf2 {[%clk 0:01:13]} 37. Kxf2 {[%clk 0:00:57]}  Qb2+ {[%clk 0:01:13]} 38. Be2 {[%clk 0:00:57]}  Qxb3 {[%clk 0:01:08]} 39. b5 {[%clk 0:00:57]}  g5 {[%clk 0:01:08]} 40. fxg5 {[%clk 0:00:56]}  hxg5 {[%clk 0:01:09]} 41. Rb8 {[%clk 0:00:56]}  f5 {[%clk 0:01:07]} 42. b6 {[%clk 0:00:55]}  f4 {[%clk 0:01:07]} 43. exf4 {[%clk 0:00:53]}  gxf4 {[%clk 0:01:08]} 44. b7 {[%clk 0:00:47]}  Qe3+ {[%clk 0:01:08]} 45. Kf1 {[%clk 0:00:47]}  Qxh3+ {[%clk 0:01:05]} 46. Ke1 {[%clk 0:00:46]}  Qg3+ {[%clk 0:01:05]} 47. Kf1 {[%clk 0:00:41]}  f3 {[%clk 0:01:05]} 48. Bd3+ {[%clk 0:00:37]}  Kg7 {[%clk 0:01:05]} 49. Re8 {[%clk 0:00:19]}  Qg2+ {[%clk 0:01:04]} 50. Ke1 {[%clk 0:00:19]}  f2+ {[%clk 0:01:03]} 51. Kd1 {[%clk 0:00:20]}  Qg4+ {[%clk 0:00:39]} 52. Kc2 {[%clk 0:00:02]}  Qa4+ {[%clk 0:00:39]} 53. Kc3 {[%clk 0:00:01]}  Qxe8 {[%clk 0:00:40]} 0-1


[Site "https://www.chess.com"]